Cogmind - Beta 14 @@@ ROGUE MODE // 2024.11.15 @ 17:30:37 Player: Fangrelle Result: Destroyed by D-53 Grenadier with Mini Grenade Launcher Performance ------------- Evolutions (0) 0 Regions Visited (4) 800 Robots Destroyed (30) 150 Value Destroyed (497) 497 Prototype IDs (23) 460 Alien Tech Used (0) 0 Bonus (300) 300 TOTAL SCORE: 2207 Bonus ------- Aligned with FarCom 300 Cogmind --------- Core Integrity 0/250 Matter 27/300 Energy 80/250 System Corruption 0% Temperature Cool (0) Movement Rolling (140) Ox4 Location -9/Mines Parts ------- > --- POWER (1) -------- Ion Engine > --- PROPULSION (2) --- Wheel > --- UTILITY (2) ------ High-capacity Storage Unit > --- WEAPON (2) ------- Assault Rifle Grenade Launcher > --- INVENTORY (20) --- Nuclear Core Light Fission Core Wheel Heat Sink Heat Sink Large Storage Unit Humpback Humpback Signal Interpreter Cloak of Protection Hacking Suite Tractor Beam Assault Rifle Datajack Mining Laser Peak State ------------ > --- POWER ------------ Ion Engine > --- PROPULSION ------- Light Treads Wheel > --- UTILITY ---------- Heat Sink High-capacity Storage Unit > --- WEAPON ----------- Assault Rifle Grenade Launcher > --- INVENTORY -------- Ion Engine Nuclear Core Fission Core Light Fission Core Wheel Heat Sink Heat Sink Large Storage Unit Humpback Humpback Signal Interpreter Hacking Suite Tractor Beam Assault Rifle Datajack Mining Laser [Rating: 10] Favorites ----------- Power Ion Engine Engine Ion Engine Propulsion Light Treads Treads Light Treads Leg Aluminum Leg Wheel Wheel Utility Heat Sink Device Heat Sink Storage Small Storage Unit Weapon Assault Rifle Ballistic Gun Assault Rifle Launcher Grenade Launcher Build | -11 -10 -10 -10 -9 ------- Run | Yrd Mat Min Exi Min Slots Evolved . | . . . . . Power . | . . . . . Propulsion . | . . . . . Utility . | . . . . . Weapon . | . . . . . Parts Attached 19 | . 16 1 1 1 Power 2 | . 1 . . 1 Engine 2 | . 1 . . 1 Core . | . . . . . Reactor . | . . . . . Propulsion 3 | . 3 . . . Treads 2 | . 2 . . . Leg . | . . . . . Wheel 1 | . 1 . . . Hover . | . . . . . Flight . | . . . . . Utility 3 | . 2 . 1 . Device 1 | . 1 . . . Storage 2 | . 1 . 1 . Processor . | . . . . . Hackware . | . . . . . Protection . | . . . . . Artifact . | . . . . . Weapon 11 | . 10 1 . . Energy Gun . | . . . . . Energy Cannon . | . . . . . Ballistic Gun 6 | . 6 . . . Ballistic Cannon . | . . . . . Launcher 5 | . 4 1 . . Special Weapon . | . . . . . Impact Weapon . | . . . . . Slashing Weapon . | . . . . . Piercing Weapon . | . . . . . Special Melee Weapon . | . . . . . Unidentified Prototypes . | . . . . . Parts Lost 4 | . 1 . . 3 Power 1 | . . . . 1 Propulsion 2 | . 1 . . 1 Utility 1 | . . . . 1 Weapon . | . . . . . Highest Loss Streak 3 | . 1 . . 3 To Critical Strikes . | . . . . . Average Slot Usage (%) 99 | . 98 100 100 100 Engine 14 | . 14 14 14 14 Treads 18 | . 21 14 14 14 Leg 1 | . 3 . . . Wheel 7 | . 3 14 14 14 Device 13 | . 12 14 14 14 Storage 14 | . 14 14 14 14 Ballistic Gun 22 | . 27 17 14 14 Launcher 5 | . . 10 14 14 Peak Build Rating 10 | . 8 8 10 10 Average Rating 8 | . 7 8 9 9 On Entrance 7 | 6 6 8 8 10 Naked Turns . | . . . . . Heaviest Build 51 | 12 30 31 51 51 Greatest Support 40 | 20 40 10 10 10 Greatest Overweight (x) 5 | . 2 3 5 5 Average Overweight (x) 2 | . . 2 4 5 Largest Inventory Capacity 20 | . 15 15 20 20 Average Capacity 12 | . 9 15 18 20 Most Carried 19 | . 10 10 19 19 Average Carried 11 | . 8 10 16 18 Final Capacity 20 | 8 15 15 20 20 Final Carried 19 | 6 10 10 19 17 Class Distribution -------------------- 100% | Mutant Dominant Class ---------------- Mutant | -10/Materials Mutant | -10/Mines Mutant | -10/Exiles Mutant | -9/Mines Resources | -11 -10 -10 -10 -9 ----------- Run | Yrd Mat Min Exi Min Matter Collected 638 | 200 425 13 . . Remotely . | . . . . . Salvage Created 741 | . 720 21 . . Parts 60 | . 52 8 . . Haulers Intercepted 1 | . 1 . . . Recyclers Shooed 3 | . 3 . . . Parts Field Recycled . | . . . . . Retrieved Matter . | . . . . . Parts Self-Destructed . | . . . . . Prevented . | . . . . . Kills | -11 -10 -10 -10 -9 ------- Run | Yrd Mat Min Exi Min Combat Hostiles Destroyed 19 | . 16 3 . . Melee 1 | . 1 . . . Guns 9 | . 8 1 . . AOE 9 | . 7 2 . . Classes Destroyed 8 | . 8 . . . Builder 1 | . 1 . . . Tunneler 1 | . 1 . . . Hauler 1 | . 1 . . . Recycler 4 | . 4 . . . Operator 2 | . 2 . . . Watcher 2 | . 2 . . . Swarmer 11 | . 8 3 . . Grunt 8 | . 8 . . . Best Kill Streak 8 | . 8 3 . . Combat Bots Only 5 | . 5 3 . . Max Kills in Single Turn 3 | . 3 1 . . Gunslinging . | . . . . . Exploded 3 | . 3 1 . . Melee 1 | . 1 . . . Uniques/NPCs Destroyed . | . . . . . Combat | -11 -10 -10 -10 -9 -------- Run | Yrd Mat Min Exi Min Hostile Shots Fired 89 | . 77 6 . 6 Missed 24 | . 22 2 . . Damage Taken 965 | . 616 78 . 271 Core 257 | . 172 14 . 71 Absorbed by Shields . | . . . . . Core Remaining (%) 100 | 100 . . . . Volleys Fired 83 | . 79 3 . 1 Largest 2 | . 2 2 . 2 Hottest 50 | . 50 50 . 50 Shots Fired 161 | . 153 6 . 2 Gun 149 | . 145 3 . 1 Cannon . | . . . . . Launcher 12 | . 8 3 . 1 Special . | . . . . . Kinetic 149 | . 145 3 . 1 Thermal . | . . . . . Explosive 12 | . 8 3 . 1 Electromagnetic . | . . . . . Robot Hit Streak 7 | . 7 3 . 5 Robot Miss Streak 4 | . 4 2 . . Penetration Max . | . . . . . Secondary Targets . | . . . . . Shots Hit Robots 84 | . 79 3 . 2 Core Hits 45 | . 40 3 . 2 Critical Kills 1 | . 1 . . . Critical Parts Destroyed . | . . . . . Critical Strikes 1 | . 1 . . . Destroy 1 | . 1 . . . Melee Attacks . | . . . . . Impact . | . . . . . Slashing . | . . . . . Piercing . | . . . . . Sneak Attacks . | . . . . . Combat Hostiles . | . . . . . Follow-up Attacks . | . . . . . Damage Inflicted 1765 | . 1620 115 . 30 Guns 1012 | . 979 22 . 11 Cannons . | . . . . . Explosions 739 | . 627 93 . 19 Melee . | . . . . . Ramming 14 | . 14 . . . Kinetic 1012 | . 979 22 . 11 Thermal . | . . . . . Explosive 739 | . 627 93 . 19 Electromagnetic . | . . . . . Impact . | . . . . . Slashing . | . . . . . Piercing . | . . . . . Highest Corruption . | . . . . . Average Corruption . | . . . . . Corruption Purged . | . . . . . Corruption Blocked . | . . . . . Overload Shots . | . . . . . Overflow Damage 65 | . 44 . . 21 Projectiles . | . . . . . Explosions 62 | . 41 . . 21 Melee 3 | . 3 . . . Knockbacks . | . . . . . Impact . | . . . . . Kinetic . | . . . . . Secondary . | . . . . . Self-Inflicted Damage 83 | . 6 46 . 31 Shots 4 | . 1 2 . 1 Rammed 8 | . 8 . . . Targets Rammed 8 | . 8 . . . Kicked . | . . . . . Crushed . | . . . . . Highest Temperature 8 | . 8 . . . Average Temperature 3 | . 3 . . . Received Heat Transfer 273 | . 273 . . . Siege Activations . | . . . . . Robots Corrupted 1 | . 1 . . . Combat Hostiles . | . . . . . Parts Fried . | . . . . . Impact Corruptions 1 | . 1 . . . Robots Melted . | . . . . . Combat Hostiles . | . . . . . Parts Melted . | . . . . . Heat Transferred . | . . . . . Parts Sabotaged . | . . . . . Parts Stolen . | . . . . . Parts Stripped . | . . . . . Power Chain Reactions . | . . . . . Alert | -11 -10 -10 -10 -9 ------- Run | Yrd Mat Min Exi Min Peak Influence 275 | . 275 163 . . Initial 70 | . . 70 . . Average 136 | . 162 131 . . Maximum Alert Level 1 | . 1 . . . Low Security (%) 75 | . 70 100 . 100 Level 1 24 | . 29 . . . Level 2 . | . . . . . Level 3 . | . . . . . Level 4 . | . . . . . Level 5 . | . . . . . High Security . | . . . . . Max Security . | . . . . . Squads Dispatched 5 | . 5 . . . Investigation 3 | . 3 . . . Extermination . | . . . . . Reinforcement 2 | . 2 . . . Assault . | . . . . . Garrison . | . . . . . Intercept . | . . . . . Searches Triggered . | . . . . . Construction Impeded . | . . . . . Haulers Reinforced . | . . . . . Active Scanning Responses . | . . . . . Cargo Convoy Interrupts . | . . . . . Stealth | -11 -10 -10 -10 -9 --------- Run | Yrd Mat Min Exi Min Distress Signals 1 | . 1 . . . Communications Jammed . | . . . . . Distress Signals . | . . . . . Times Spotted 34 | . 29 3 . 2 Peak Tracking Total 6 | . 6 3 . 2 Tactical Retreats . | . . . . . Traps | -11 -10 -10 -10 -9 ------- Run | Yrd Mat Min Exi Min Traps Triggered 1 | . 1 . . . Indirectly . | . . . . . Trap Hack Attempts . | . . . . . Triggered . | . . . . . Disarmed . | . . . . . Reprogrammed . | . . . . . Reused . | . . . . . Traps Extracted . | . . . . . Installed . | . . . . . Triggered . | . . . . . Machines | -11 -10 -10 -10 -9 ---------- Run | Yrd Mat Min Exi Min Machines Disabled . | . . . . . Max in Single Turn . | . . . . . Machines Repaired . | . . . . . Machines Dismantled . | . . . . . Machines Sabotaged . | . . . . . Overloaded Fab Kills . | . . . . . Hacking | -11 -10 -10 -10 -9 --------- Run | Yrd Mat Min Exi Min Machines Accessed 10 | . 8 . 2 . Terminals 6 | . 6 . . . Fabricators . | . . . . . Repair Stations . | . . . . . Recycling Units 2 | . 2 . . . Scanalyzers . | . . . . . Garrison Access . | . . . . . Total Hacks 37 | . 32 . 5 . Successful 20 | . 15 . 5 . Failed 16 | . 16 . . . Catastrophic 1 | . 1 . . . Database Lockouts 1 | . 1 . . . Manual 29 | . 28 . 1 . Terminals 26 | . 26 . . . Fabricators . | . . . . . Repair Stations . | . . . . . Recycling Units 6 | . 6 . . . Scanalyzers . | . . . . . Garrison Access . | . . . . . Terminal Hacks 6 | . 1 . 5 . Record 4 | . . . 4 . Robot Analysis 1 | . 1 . . . Derelict Proto ID Bank 1 | . . . 1 . Fabricator Hacks . | . . . . . Repair Station Hacks . | . . . . . Recycling Unit Hacks 2 | . 2 . . . Report Inventory 2 | . 2 . . . Scanalyzer . | . . . . . Garrison Access Hacks . | . . . . . Unauthorized Hacks 12 | . 12 . . . Terminals 11 | . 11 . . . Assimilate 3 | . 3 . . . Botnet 5 | . 5 . . . Operators 1 | . 1 . . . Skim 2 | . 2 . . . Fabricators . | . . . . . Repair Stations . | . . . . . Recycling Units 1 | . 1 . . . Tunnel 1 | . 1 . . . Scanalyzers . | . . . . . Garrison Access . | . . . . . Data Cores Recovered . | . . . . . Used . | . . . . . Hacking Detections 7 | . 7 . . . Full Trace Events 2 | . 2 . . . Feedback Events . | . . . . . Feedback Blocked . | . . . . . Robot Schematics Acquired . | . . . . . Robots Built . | . . . . . Authchips . | . . . . . Time . | . . . . . Total Robot Build Rating . | . . . . . Part Schematics Acquired . | . . . . . Parts Built . | . . . . . Authchips . | . . . . . Time . | . . . . . Total Part Build Rating . | . . . . . Parts Repaired . | . . . . . Time . | . . . . . Parts Recycled . | . . . . . Recycled Matter . | . . . . . Retrieved Matter . | . . . . . Retrieved Components . | . . . . . Parts Scanalyzed . | . . . . . Part Schematics Acquired . | . . . . . Parts Damaged . | . . . . . Bothacking | -11 -10 -10 -10 -9 ------------ Run | Yrd Mat Min Exi Min Used RIF Installer . | . . . . . Robots Hacked . | . . . . . Non-combat . | . . . . . Combat . | . . . . . Robot Hacks Applied . | . . . . . Relay Couplers Released . | . . . . . Fabnet Peak Effective % . | . . . . . Robots Rewired . | . . . . . Allies Hacked . | . . . . . Hacks Repelled . | . . . . . Allies | -11 -10 -10 -10 -9 -------- Run | Yrd Mat Min Exi Min Total Allies . | . . . . . Largest Group . | . . . . . Highest-Rated Group . | . . . . . Highest-Rated Ally . | . . . . . Total Orders . | . . . . . Ally Attacks . | . . . . . Total Damage . | . . . . . Kills . | . . . . . Allies Corrupted . | . . . . . Allies Melted . | . . . . . Intel | -11 -10 -10 -10 -9 ------- Run | Yrd Mat Min Exi Min Robot Analysis Total 1 | . 1 . . . Derelict Logs Recovered 2 | . . . . 2 Drone Launches . | . . . . . Drone Recoveries . | . . . . . Exploration | -11 -10 -10 -10 -9 ------------- Run | Yrd Mat Min Exi Min Turns Passed 1994 | . 1229 46 487 232 Spaces Moved 1192 | 1 689 30 325 147 Core . | . . . . . Treads 386 | . 386 . . . Legs 75 | 1 74 . . . Wheels 731 | . 229 30 325 147 Hover . | . . . . . Flight . | . . . . . Fastest Speed 95 | 120 95 110 125 155 Average Speed 142 | 120 137 120 147 155 Slowest Speed 160 | 120 160 125 155 155 Overloaded Moves . | . . . . . Propulsion Burnouts . | . . . . . Robots Hopped . | . . . . . Cave-ins Triggered . | . . . . . Exploration Rate (%) 44 | 1 96 10 69 47 Regions Visited 4 Branch Regions 3 Pre-discovered Areas 3 | . 1 . 1 1 Known Exits Taken . | . . . . . Unknown Exits Taken 4 | 1 1 1 1 . Scrap Searched . | . . . . . Spaces Dug 6 | . 6 . . . Terrain Destroyed 68 | . 41 23 . 4 Melee . | . . . . . Projectile . | . . . . . AOE 68 | . 41 23 . 4 Terrain Rammed . | . . . . . Walls Destroyed . | . . . . . Machines Disabled . | . . . . . Actions | -11 -10 -10 -10 -9 --------- Run | Yrd Mat Min Exi Min Total 1324 | . 810 33 331 150 Wait 3 | . 3 . . . Move 1188 | . 688 29 324 147 Hop . | . . . . . Pick Up 16 | . 10 . 6 . Fast Attach 1 | . 1 . . . Attach 6 | . 5 . . 1 Detach . | . . . . . Swap 12 | . 10 1 1 . Drop 7 | . 6 . . 1 Fire 83 | . 79 3 . 1 Melee . | . . . . . Ram . | . . . . . Kick . | . . . . . Crush 8 | . 8 . . . Escape Stasis . | . . . . . Rewire . | . . . . . Trap . | . . . . . Miscellaneous . | . . . . . Route ------- -11/Scrapyard -10/Materials (discovered 5 exits: [*Mat x3] / [*Min x2]) -10/Mines -10/Exiles -9/Mines History --------- Turn | Location | Event 1 | -11/Scrapyard | Discovered new exit (range 0) 1 | -11/Scrapyard | Entered Materials 163 | -10/Materials | Discovered new exit (range 4) 238 | -10/Materials | Discovered new exit (range 14) 320 | -10/Materials | Build established: Mutant 375 | -10/Materials | Discovered new exit (range 15) 608 | -10/Materials | Core integrity fell below 50% 781 | -10/Materials | Discovered new exit (range 14) 851 | -10/Materials | Central database locked down 921 | -10/Materials | Discovered new exit (range 8) 1230 | -10/Materials | Entered Mines 1268 | -10/Mines | Deemed a non-threat by the Exiles lab entrance 1269 | -10/Mines | Discovered new exit (range 5) 1276 | -10/Mines | Entered Exiles 1311 | -10/Exiles | Met 8R-AWN 1332 | -10/Exiles | Met EX-HEX 1402 | -10/Exiles | Met EX-DEC 1514 | -10/Exiles | Learned location of Zion (-7) 1542 | -10/Exiles | Met EX-BIN 1563 | -10/Exiles | Aligned with FarCom system 1565 | -10/Exiles | Given EX-Vault access code 1601 | -10/Exiles | Opened EX-Vault 1608 | -10/Exiles | Found Cloak of Protection 1639 | -10/Exiles | Warned to stay clear of 0b10 Research branches 1665 | -10/Exiles | Exiles lab attacked by MAIN.C 1743 | -10/Exiles | Discovered new exit (range 14) 1763 | -10/Exiles | Left Exiles lab with Cloak of Protection 1763 | -10/Exiles | Entered Mines 1972 | -9/Mines | Assembled infested the area 1991 | -9/Mines | Core integrity fell below 20% 1995 | -9/Mines | Destroyed by D-53 Grenadier with Mini Grenade Launcher Last Messages --------------- 01817_ K-01 Serf collects debris. 01835_ T-07 Excavator is excavating. 01838_ K-01 Serf collects debris. 01839_ T-07 Excavator is excavating. 01842_ K-01 Serf collects debris. 01887_ K-01 Serf cleans the Laser Drill. 01894_ K-01 Serf collects debris. 01954_ U-05 Engineer lays Concrete. 01972_ ALERT: Infestation in the mines, dispatching Demolisher response squad. 01974_ C-30 ARC bursts open, deploying its payload. 01974_ D-53 Grenadier unfolds itself. 01990_ Dropped Rigged Fission Core. 01990_ Rigged Fission Core explodes. 01991_ K-01 Serf collects debris. 01991_ Heat Sink destroyed. 01992_ Ion Engine destroyed. 01992_ Destroyed Ion Engine. 01992_ Lgt. Treads destroyed. 01992_ K-01 Serf destroyed. 01994_ R-06 Scavenger collects Mak. Hover Unit. Map ----- +----------------------------------------------------+ | | | ?????????????????????????????????????????????????? | | ?????????????????????????????????????????????????? | | ?????????????????????????????????????????????????? | | ?????????????????????????????????????????????????? | | ?????????????????????????????????????????????????? | | ?????????????????????????????????????????????????? | | ?????????????????????????????????????????????????? | | ?????????????????????????????????????????????????? | | ?????????????????????????????????????????????????? | | ?????????????????????????????????????????????????? | | ?????????????????????????????????????????????????? | | ???????????????????????????? ?#????????????????? | | ??????????????????????????? " ?????????????????? | | ??????????????????????????? %" ?????????????????? | | ??????????????????????????? " ?????????????????? | | ??????????????????????????? ??????????????????? | | ???????????????????????????# #??????????????????? | | ???????????????????????????# #??????????????????? | | ???????????????????????????# #????###???????????? | | ?????????????#????????##?### #???# ##??????????? | | ?????????????? ####### ## #### #??????????? | | ???????????????? #??????????? | | ??????????????????? #???????????? | | ???????????????????### #???????????? | | ???????????????????# @ ########?????? | | ???????????????????## ! * ????? | | ??????????????????## d % %= ?????? | | ??????????????????# = r #####?????????? | | ??????????????????# d ####?????????????? | | ??????????????????# ## ##????????????????? | | ??????????????????# ##????????????????? | | ??????????????????# ##????#####??????? | | ??????????????????## #??? #??????? | | ???????????????????# #?? #??????? | | ???????????????????## #### #??????? | | ????????????????????### #????????? | | ??????????????????????# #????????? | | ??????????????????????# ## #######????????? | | ?????????????????????# #### ##?????????????? | | ?????????????????????# ##??# ##????###?????? | | ?????????????????????# ##???# ##??# ##????? | | ?????????????????????#####???## ### #????? | | ??????????????????????????#### #????? | | ?????????????????????????## ##????? | | ?????????????????????????# ##?????? | | ?????????????????????????# ##??????? | | ?????????????????????????## ## #???????? | | ?????###???####???????????# #?## #???????? | | ???# # #### ##??????????####??## ## #???? | +----------------------------------------------------+ Best States ------------- Heat Dissipation 35 Energy Generation 10 Energy Capacity 250 Matter Stores 300 Matter Capacity 300 Sight Range 16 Terrain Scan Density 10 Evasion (%) 55 Recoil Reduction 2 Item Schematics ----------------- None Robot Schematics ------------------ None Fabricated ------------ Nothing Alien Tech Used ----------------- None Achievements -------------- None Challenges ------------ None Game ------ Seed ConstructChainReplica Manual? 0 Play Time 00:14:01 Cumulative 82.5 hours Start 2024.11.15 @ 17:16:35 End 2024.11.15 @ 17:30:37 Sessions 1 Manual Loads 0 Difficulty Rogue Special Mode None Game No. 144 Rogue 144 Adventurer 0 Explorer 0 Win Type - Total 0 Types 0/0/0/0/0/0/0/0/0 Lore% 41 Gallery% 36 Achievement% 34 Wizard Run 0 Options --------- Layout 0 ASCII 0 Keyboard 0 Movement Mouse Keybinds 0 Fullscreen 1 Font 24/Smallcaps Map View 91x25 Zoom Use 89% Tactical HUD 1 Map Filters NONE Filters NONE Steam 1 RUN: dd433f2d-20b3-4ed5-bbcb-82d043420a41